[Event "*** Titled Tuesday Blitz"]
[Site "Chess.com"]
[Date "2021.02.16"]
[Round "8"]
[White "Zenzo"]
[Black "Mihnea2017"]
[Result "0-1"]
[WhiteElo "2602"]
[BlackElo "2476"]
[TimeControl "180+1"]
[EndTime "11:30:46 PST"]
[Termination "Mihnea2017 won by checkmate"]

1. e4 {[%clk 0:02:58.1]} 1... c5 {[%clk 0:02:59.7]} 2. Nf3 {[%clk 0:02:56.9]}
2... Nc6 {[%clk 0:02:59.9]} 3. d4 {[%clk 0:02:57.2]} 3... cxd4 {[%clk
0:03:00.1]} 4. Nxd4 {[%clk 0:02:58.1]} 4... Nf6 {[%clk 0:03:00.7]} 5. Nc3 {[%clk
0:02:58.2]} 5... e5 {[%clk 0:03:01]} 6. Ndb5 {[%clk 0:02:58.6]} 6... d6 {[%clk
0:03:01.5]} 7. a4 {[%clk 0:02:58.2]} 7... Be6 {[%clk 0:02:52.3]} 8. Bg5 {[%clk
0:02:55.9]} 8... Rc8 {[%clk 0:02:37.6]} 9. Be2 {[%clk 0:02:25.4]} 9... a6 {[%clk
0:02:33.6]} 10. Na3 {[%clk 0:02:24]} 10... Nb4 {[%clk 0:02:31.6]} 11. O-O {[%clk
0:02:20.2]} 11... Be7 {[%clk 0:02:29]} 12. Bxf6 {[%clk 0:02:17.8]} 12... Bxf6
{[%clk 0:02:28.9]} 13. Nd5 {[%clk 0:02:16.6]} 13... Nxd5 {[%clk 0:02:07.5]} 14.
exd5 {[%clk 0:02:17.5]} 14... Bd7 {[%clk 0:01:53.5]} 15. c4 {[%clk 0:02:08.5]}
15... O-O {[%clk 0:01:52.7]} 16. Bg4 {[%clk 0:02:05.8]} 16... e4 {[%clk
0:01:51.3]} 17. Rb1 {[%clk 0:02:00.2]} 17... Be5 {[%clk 0:01:47.9]} 18. Bxd7
{[%clk 0:01:57.5]} 18... Qxd7 {[%clk 0:01:48.8]} 19. b3 {[%clk 0:01:47.9]} 19...
f5 {[%clk 0:01:48.3]} 20. f3 {[%clk 0:01:45.2]} 20... Rf6 {[%clk 0:01:07]} 21.
fxe4 {[%clk 0:01:34.3]} 21... fxe4 {[%clk 0:01:07.3]} 22. Qe2 {[%clk 0:01:31.9]}
22... Bd4+ {[%clk 0:01:03.1]} 23. Kh1 {[%clk 0:01:32.1]} 23... Rxf1+ {[%clk
0:01:00]} 24. Rxf1 {[%clk 0:01:30.8]} 24... Re8 {[%clk 0:00:58.8]} 25. Nc2
{[%clk 0:01:24.4]} 25... Bc5 {[%clk 0:00:54.4]} 26. Rf4 {[%clk 0:01:06.7]} 26...
e3 {[%clk 0:00:53.9]} 27. Rf3 {[%clk 0:01:02.5]} 27... a5 {[%clk 0:00:48.2]} 28.
g3 {[%clk 0:00:44.1]} 28... h6 {[%clk 0:00:47.1]} 29. Kg2 {[%clk 0:00:44.1]}
29... Qe7 {[%clk 0:00:46.1]} 30. Ne1 {[%clk 0:00:38.7]} 30... Qe4 {[%clk
0:00:44]} 31. h3 {[%clk 0:00:28.2]} 31... Rf8 {[%clk 0:00:33.6]} 32. Kh2 {[%clk
0:00:27.8]} 32... Rxf3 {[%clk 0:00:30.7]} 33. Nxf3 {[%clk 0:00:28.7]} 33... Qb1
{[%clk 0:00:29.8]} 34. g4 {[%clk 0:00:16.7]} 34... Qxb3 {[%clk 0:00:29.9]} 35.
g5 {[%clk 0:00:17.3]} 35... h5 {[%clk 0:00:29.2]} 36. g6 {[%clk 0:00:17.4]}
36... Qb1 {[%clk 0:00:29.1]} 37. Nh4 {[%clk 0:00:15.8]} 37... Qe4 {[%clk
0:00:28.7]} 38. Qxh5 {[%clk 0:00:15.7]} 38... Qf4+ {[%clk 0:00:24.4]} 39. Kg2
{[%clk 0:00:15.3]} 39... Qf2+ {[%clk 0:00:15.8]} 40. Kh1 {[%clk 0:00:14.9]}
40... Qf1+ {[%clk 0:00:15.5]} 41. Kh2 {[%clk 0:00:15.5]} 41... Qf2+ {[%clk
0:00:15.5]} 42. Ng2 {[%clk 0:00:16.1]} 42... Bd4 {[%clk 0:00:13.6]} 43. Qh7+
{[%clk 0:00:15.3]} 43... Kf8 {[%clk 0:00:14]} 44. Qh8+ {[%clk 0:00:15.4]} 44...
Ke7 {[%clk 0:00:14.5]} 45. Qc8 {[%clk 0:00:15.9]} 45... e2 {[%clk 0:00:13.6]}
46. Qe6+ {[%clk 0:00:13.2]} 46... Kd8 {[%clk 0:00:13.6]} 47. Qg8+ {[%clk
0:00:06.8]} 47... Kc7 {[%clk 0:00:13.2]} 48. Qf7+ {[%clk 0:00:07.4]} 48... Kb6
{[%clk 0:00:13.2]} 49. Qxf2 {[%clk 0:00:07.2]} 49... Bxf2 {[%clk 0:00:13.2]} 50.
h4 {[%clk 0:00:07.6]} 50... Bxh4 {[%clk 0:00:12.4]} 51. Kh3 {[%clk 0:00:08.1]}
51... e1=Q {[%clk 0:00:12.5]} 52. Nxe1 {[%clk 0:00:08.7]} 52... Bxe1 {[%clk
0:00:13.1]} 53. Kg4 {[%clk 0:00:09.4]} 53... Bc3 {[%clk 0:00:13.8]} 54. Kf5
{[%clk 0:00:09.8]} 54... Kc5 {[%clk 0:00:14.3]} 55. Ke6 {[%clk 0:00:10.7]} 55...
Be5 {[%clk 0:00:14.4]} 56. Kd7 {[%clk 0:00:10.9]} 56... Kxc4 {[%clk 0:00:14.9]}
57. Kc7 {[%clk 0:00:11.6]} 57... Kxd5 {[%clk 0:00:15.1]} 58. Kxb7 {[%clk
0:00:11.8]} 58... Kc5 {[%clk 0:00:15.7]} 59. Ka6 {[%clk 0:00:12.3]} 59... Kb4
{[%clk 0:00:16]} 60. Kb6 {[%clk 0:00:12.8]} 60... d5 {[%clk 0:00:16.4]} 61. Kc6
{[%clk 0:00:13.7]} 61... d4 {[%clk 0:00:16.8]} 62. Kd5 {[%clk 0:00:14.6]} 62...
Bf6 {[%clk 0:00:17.3]} 63. Ke4 {[%clk 0:00:15.1]} 63... Kc3 {[%clk 0:00:17.3]}
64. Kd5 {[%clk 0:00:15.5]} 64... d3 {[%clk 0:00:18.2]} 65. Kc5 {[%clk
0:00:16.4]} 65... d2 {[%clk 0:00:19.1]} 66. Kb5 {[%clk 0:00:17.3]} 66... d1=Q
{[%clk 0:00:19.6]} 67. Kxa5 {[%clk 0:00:18.2]} 67... Qd5+ {[%clk 0:00:19.4]} 68.
Ka6 {[%clk 0:00:18.7]} 68... Kb4 {[%clk 0:00:19.8]} 69. a5 {[%clk 0:00:19.6]}
69... Qc6+ {[%clk 0:00:19.3]} 70. Ka7 {[%clk 0:00:19.8]} 70... Kxa5 {[%clk
0:00:19.2]} 71. Kb8 {[%clk 0:00:20.1]} 71... Qd7 {[%clk 0:00:19.9]} 72. Ka8
{[%clk 0:00:20.3]} 72... Kb6 {[%clk 0:00:20.3]} 73. Kb8 {[%clk 0:00:21.2]} 73...
Qd8# {[%clk 0:00:20.8]} 0-1

[Event "*** Titled Tuesday Blitz"]
[Site "Chess.com"]
[Date "2021.02.16"]
[Round "8"]
[White "eldur16"]
[Black "mary-sanna"]
[Result "1-0"]
[WhiteElo "2482"]
[BlackElo "2053"]
[TimeControl "180+1"]
[EndTime "11:30:46 PST"]
[Termination "eldur16 won by resignation"]

1. Nf3 {[%clk 0:03:00.9]} 1... Nf6 {[%clk 0:02:56.5]} 2. g3 {[%clk 0:03:00.4]}
2... d5 {[%clk 0:02:56.1]} 3. Bg2 {[%clk 0:02:59.9]} 3... e6 {[%clk 0:02:53.8]}
4. O-O {[%clk 0:02:59.5]} 4... Be7 {[%clk 0:02:50.8]} 5. d3 {[%clk 0:02:57.5]}
5... O-O {[%clk 0:02:50.7]} 6. Nbd2 {[%clk 0:02:57.2]} 6... c5 {[%clk
0:02:49.1]} 7. e4 {[%clk 0:02:57.1]} 7... dxe4 {[%clk 0:02:41.1]} 8. dxe4 {[%clk
0:02:56.5]} 8... Nc6 {[%clk 0:02:37.9]} 9. Re1 {[%clk 0:02:50.4]} 9... Qc7
{[%clk 0:02:34.8]} 10. c3 {[%clk 0:02:48.7]} 10... Rd8 {[%clk 0:02:33.2]} 11.
Qc2 {[%clk 0:02:45.8]} 11... b6 {[%clk 0:02:29.7]} 12. Nc4 {[%clk 0:02:31.6]}
12... Ba6 {[%clk 0:02:14.3]} 13. Bf4 {[%clk 0:02:29.6]} 13... Qc8 {[%clk
0:02:08.2]} 14. Nfd2 {[%clk 0:02:18.6]} 14... b5 {[%clk 0:01:53]} 15. e5 {[%clk
0:01:57]} 15... Nd5 {[%clk 0:01:30.1]} 16. Ne3 {[%clk 0:01:48.1]} 16... Nxf4
{[%clk 0:01:28.4]} 17. gxf4 {[%clk 0:01:47.7]} 17... Rb8 {[%clk 0:01:24.2]} 18.
Ne4 {[%clk 0:01:42.6]} 18... b4 {[%clk 0:01:17.3]} 19. Rad1 {[%clk 0:01:39]}
19... Qc7 {[%clk 0:01:04.3]} 20. Bf1 {[%clk 0:01:27.5]} 20... Bxf1 {[%clk
0:01:00]} 21. Rxf1 {[%clk 0:01:26.8]} 21... Rxd1 {[%clk 0:00:50.6]} 22. Rxd1
{[%clk 0:01:26]} 22... Rd8 {[%clk 0:00:51.4]} 23. Nc4 {[%clk 0:01:25.5]} 23...
a5 {[%clk 0:00:44]} 24. Ned6 {[%clk 0:01:18]} 24... Bxd6 {[%clk 0:00:39.4]} 25.
exd6 {[%clk 0:01:11.3]} 25... Qb8 {[%clk 0:00:37.1]} 26. Qe4 {[%clk 0:01:07.9]}
26... Qb5 {[%clk 0:00:31.6]} 27. d7 {[%clk 0:01:02.5]} 27... h6 {[%clk
0:00:29.6]} 28. Rd6 {[%clk 0:00:57.6]} 28... Nb8 {[%clk 0:00:27.6]} 29. cxb4
{[%clk 0:00:52.6]} 29... axb4 {[%clk 0:00:27]} 30. Ne5 {[%clk 0:00:51.7]} 30...
Nxd7 {[%clk 0:00:20.6]} 31. Qd3 {[%clk 0:00:40.2]} 31... Qxd3 {[%clk 0:00:18.4]}
32. Rxd3 {[%clk 0:00:39.4]} 32... Kf8 {[%clk 0:00:13.1]} 33. Rxd7 {[%clk
0:00:38.1]} 33... Ra8 {[%clk 0:00:11.8]} 34. Rxf7+ {[%clk 0:00:37]} 34... Ke8
{[%clk 0:00:12.4]} 35. Rxg7 {[%clk 0:00:35.2]} 35... Rxa2 {[%clk 0:00:11.9]} 36.
Nc4 {[%clk 0:00:35]} 36... Ra1+ {[%clk 0:00:11.7]} 37. Kg2 {[%clk 0:00:34.9]}
37... Rc1 {[%clk 0:00:11.8]} 38. Nd6+ {[%clk 0:00:32.1]} 38... Kf8 {[%clk
0:00:12.1]} 39. Rf7+ {[%clk 0:00:27.4]} 39... Kg8 {[%clk 0:00:13]} 40. Rc7
{[%clk 0:00:27.2]} 40... Rc2 {[%clk 0:00:12.1]} 41. b3 {[%clk 0:00:26.3]} 41...
Rc3 {[%clk 0:00:11.9]} 42. h4 {[%clk 0:00:25.7]} 42... Rxb3 {[%clk 0:00:11.4]}
43. Rxc5 {[%clk 0:00:25.3]} 43... Kg7 {[%clk 0:00:10.4]} 44. h5 {[%clk
0:00:22.9]} 44... Rb1 {[%clk 0:00:09.9]} 45. Ne4 {[%clk 0:00:22]} 45... b3
{[%clk 0:00:09.8]} 46. Rb5 {[%clk 0:00:21.9]} 46... b2 {[%clk 0:00:09.4]} 47.
Nd2 {[%clk 0:00:22]} 47... Rd1 {[%clk 0:00:07.3]} 48. Rxb2 {[%clk 0:00:21.8]}
48... Kf6 {[%clk 0:00:07.7]} 49. Kf3 {[%clk 0:00:21.5]} 49... Kf5 {[%clk
0:00:07.4]} 50. Ke2 {[%clk 0:00:19.8]} 50... Rh1 {[%clk 0:00:07.5]} 51. Ke3
{[%clk 0:00:19.3]} 51... Rxh5 {[%clk 0:00:07.6]} 52. Rb5+ {[%clk 0:00:18.8]}
52... Kg4 {[%clk 0:00:07.2]} 53. Rxh5 {[%clk 0:00:18.4]} 53... Kxh5 {[%clk
0:00:07.7]} 54. Ke4 {[%clk 0:00:18.5]} 54... Kg4 {[%clk 0:00:08]} 55. Ke5 {[%clk
0:00:18]} 55... h5 {[%clk 0:00:07.9]} 56. Ke4 {[%clk 0:00:17.5]} 56... h4 {[%clk
0:00:07.3]} 57. Nf1 {[%clk 0:00:17.4]} 57... Kh3 {[%clk 0:00:07]} 58. Kf3 {[%clk
0:00:17]} 58... e5 {[%clk 0:00:05.7]} 59. f5 {[%clk 0:00:17.2]} 59... e4+ {[%clk
0:00:05.9]} 60. Ke2 {[%clk 0:00:17.2]} 60... e3 {[%clk 0:00:05.9]} 61. fxe3
{[%clk 0:00:17.4]} 61... Kg2 {[%clk 0:00:05.4]} 62. f6 {[%clk 0:00:17.4]} 62...
h3 {[%clk 0:00:06]} 63. f7 {[%clk 0:00:17.5]} 63... h2 {[%clk 0:00:06.8]} 64.
Nxh2 {[%clk 0:00:17.3]} 64... Kxh2 {[%clk 0:00:07.7]} 65. f8=Q {[%clk
0:00:17.5]} 65... Kh1 {[%clk 0:00:08.3]} 66. Qg8 {[%clk 0:00:17.1]} 1-0

[Event "*** Titled Tuesday Blitz"]
[Site "Chess.com"]
[Date "2021.02.16"]
[Round "8"]
[White "PaulfromSPb"]
[Black "AldokhinIvan"]
[Result "1-0"]
[WhiteElo "2615"]
[BlackElo "2454"]
[TimeControl "180+1"]
[EndTime "11:30:49 PST"]
[Termination "PaulfromSPb won on time"]

1. h4 {[%clk 0:03:00.9]} 1... e5 {[%clk 0:02:57.9]} 2. h5 {[%clk 0:03:00.9]}
2... Nc6 {[%clk 0:02:58]} 3. d3 {[%clk 0:03:00.8]} 3... d5 {[%clk 0:02:58.2]} 4.
Nc3 {[%clk 0:02:49.3]} 4... Bg4 {[%clk 0:02:58.1]} 5. Nf3 {[%clk 0:02:33.7]}
5... d4 {[%clk 0:02:51.5]} 6. Ne4 {[%clk 0:02:31.7]} 6... f5 {[%clk 0:02:51.8]}
7. Ng3 {[%clk 0:02:31.4]} 7... Nf6 {[%clk 0:02:42]} 8. Bg5 {[%clk 0:02:27.9]}
8... h6 {[%clk 0:02:31]} 9. Bxf6 {[%clk 0:02:24.6]} 9... Qxf6 {[%clk 0:02:30.9]}
10. Nd2 {[%clk 0:02:25.5]} 10... e4 {[%clk 0:02:10.6]} 11. dxe4 {[%clk
0:02:12.5]} 11... f4 {[%clk 0:02:10.2]} 12. Nf5 {[%clk 0:02:12.1]} 12... O-O-O
{[%clk 0:02:03.4]} 13. a3 {[%clk 0:02:09.1]} 13... Bc5 {[%clk 0:01:58.5]} 14.
Nf3 {[%clk 0:02:06.6]} 14... Rhe8 {[%clk 0:01:54]} 15. Qd3 {[%clk 0:02:04.3]}
15... Ne5 {[%clk 0:01:04.1]} 16. Nxe5 {[%clk 0:01:50.8]} 16... Qxe5 {[%clk
0:01:03.1]} 17. Rh4 {[%clk 0:01:49.9]} 17... Bxf5 {[%clk 0:00:50.7]} 18. exf5
{[%clk 0:01:50.8]} 18... Be7 {[%clk 0:00:45.6]} 19. Rh3 {[%clk 0:01:39.2]} 19...
Bg5 {[%clk 0:00:45.7]} 20. Rf3 {[%clk 0:01:39.1]} 20... Kb8 {[%clk 0:00:45.9]}
21. O-O-O {[%clk 0:01:37.5]} 21... Bf6 {[%clk 0:00:45.5]} 22. Kb1 {[%clk
0:01:35.3]} 22... c5 {[%clk 0:00:45.3]} 23. Qd2 {[%clk 0:01:17.6]} 23... Bg5
{[%clk 0:00:37.5]} 24. Qd3 {[%clk 0:01:12.4]} 24... Bf6 {[%clk 0:00:37.5]} 25.
Qd2 {[%clk 0:01:08.3]} 25... Bg5 {[%clk 0:00:37.8]} 26. e3 {[%clk 0:01:00.4]}
26... dxe3 {[%clk 0:00:30.6]} 27. Qe2 {[%clk 0:00:48.2]} 27... Rxd1+ {[%clk
0:00:30.5]} 28. Qxd1 {[%clk 0:00:49.1]} 28... e2 {[%clk 0:00:30.1]} 29. Bxe2
{[%clk 0:00:48.8]} 29... Qxe2 {[%clk 0:00:30.5]} 30. Qd6+ {[%clk 0:00:49.7]}
30... Ka8 {[%clk 0:00:30.9]} 31. Qxc5 {[%clk 0:00:46.3]} 31... Qe5 {[%clk
0:00:20.6]} 32. Qb4 {[%clk 0:00:39.6]} 32... Qxf5 {[%clk 0:00:18.2]} 33. Rb3
{[%clk 0:00:40.2]} 33... Qd5 {[%clk 0:00:16.4]} 34. f3 {[%clk 0:00:35.6]} 34...
a6 {[%clk 0:00:16.4]} 35. Rd3 {[%clk 0:00:32.6]} 35... Re1+ {[%clk 0:00:15.9]}
36. Qxe1 {[%clk 0:00:31.3]} 36... Qc6 {[%clk 0:00:16.6]} 37. Qe4 {[%clk
0:00:28.6]} 37... Qb6 {[%clk 0:00:13.6]} 38. Qd4 {[%clk 0:00:28.4]} 38... Qc6
{[%clk 0:00:13.4]} 39. Qxg7 {[%clk 0:00:28]} 39... Bf6 {[%clk 0:00:12.1]} 40.
Qxh6 {[%clk 0:00:22.5]} 40... a5 {[%clk 0:00:11.6]} 41. Qxf4 {[%clk 0:00:20.4]}
41... a4 {[%clk 0:00:11.8]} 42. Qb4 {[%clk 0:00:19.6]} 42... Kb8 {[%clk
0:00:09.9]} 43. g4 {[%clk 0:00:17.8]} 43... Qe6 {[%clk 0:00:10.2]} 44. Qe4
{[%clk 0:00:16.2]} 44... Qb6 {[%clk 0:00:10.1]} 45. Qb4 {[%clk 0:00:16.1]} 45...
Qe6 {[%clk 0:00:09.3]} 46. Rd1 {[%clk 0:00:16]} 46... Qe5 {[%clk 0:00:08.4]} 47.
Rc1 {[%clk 0:00:15.6]} 47... Bg5 {[%clk 0:00:05.9]} 48. Rf1 {[%clk 0:00:14.8]}
48... Bf6 {[%clk 0:00:06.1]} 49. Re1 {[%clk 0:00:13.5]} 49... Qd5 {[%clk
0:00:03.9]} 50. Re8+ {[%clk 0:00:13.2]} 50... Kc7 {[%clk 0:00:04.7]} 51. Re1
{[%clk 0:00:10.9]} 51... Kb8 {[%clk 0:00:02.9]} 52. Qf8+ {[%clk 0:00:10.8]}
52... Ka7 {[%clk 0:00:03.2]} 53. Qxf6 {[%clk 0:00:10.4]} 53... Qb5 {[%clk
0:00:03.2]} 54. h6 {[%clk 0:00:09.9]} 54... Qa5 {[%clk 0:00:03.8]} 55. Qd4+
{[%clk 0:00:09.8]} 55... Ka8 {[%clk 0:00:03.9]} 56. Rd1 {[%clk 0:00:10.7]} 56...
Kb8 {[%clk 0:00:03.4]} 57. h7 {[%clk 0:00:10.8]} 1-0

[Event "*** Titled Tuesday Blitz"]
[Site "Chess.com"]
[Date "2021.02.16"]
[Round "8"]
[White "lelya96"]
[Black "Tactictic"]
[Result "0-1"]
[WhiteElo "2240"]
[BlackElo "2419"]
[TimeControl "180+1"]
[EndTime "11:30:49 PST"]
[Termination "Tactictic won by resignation"]

1. c4 {[%clk 0:03:00.9]} 1... Nf6 {[%clk 0:02:57.9]} 2. Nc3 {[%clk 0:03:00.1]}
2... e6 {[%clk 0:02:57.5]} 3. e4 {[%clk 0:02:59.5]} 3... d5 {[%clk 0:02:51.7]}
4. e5 {[%clk 0:02:59.1]} 4... d4 {[%clk 0:02:52.2]} 5. exf6 {[%clk 0:02:58.6]}
5... dxc3 {[%clk 0:02:52.8]} 6. bxc3 {[%clk 0:02:58.5]} 6... Qxf6 {[%clk
0:02:52]} 7. d4 {[%clk 0:02:58.6]} 7... b6 {[%clk 0:02:47.4]} 8. Be2 {[%clk
0:02:57.5]} 8... Bd6 {[%clk 0:02:37.1]} 9. Bf3 {[%clk 0:02:49.2]} 9... c6 {[%clk
0:02:35.3]} 10. Qa4 {[%clk 0:02:43.7]} 10... Bb7 {[%clk 0:02:16]} 11. Ne2 {[%clk
0:02:37.9]} 11... O-O {[%clk 0:02:15.3]} 12. Be3 {[%clk 0:02:30.9]} 12... Rc8
{[%clk 0:02:11.6]} 13. O-O {[%clk 0:02:26.2]} 13... Nd7 {[%clk 0:02:08.2]} 14.
Rab1 {[%clk 0:02:20.5]} 14... e5 {[%clk 0:01:54.2]} 15. c5 {[%clk 0:02:10.2]}
15... Bc7 {[%clk 0:01:40.9]} 16. Ng3 {[%clk 0:02:07.7]} 16... exd4 {[%clk
0:01:34.8]} 17. Bxd4 {[%clk 0:01:50.6]} 17... Be5 {[%clk 0:01:28.5]} 18. Ne4
{[%clk 0:01:34.2]} 18... Qe7 {[%clk 0:01:26.4]} 19. Bxe5 {[%clk 0:01:33.6]}
19... Nxe5 {[%clk 0:01:27.3]} 20. Nd6 {[%clk 0:01:28.5]} 20... Nxf3+ {[%clk
0:01:17.5]} 21. gxf3 {[%clk 0:01:26.9]} 21... Rd8 {[%clk 0:01:16.6]} 22. Rfe1
{[%clk 0:01:17.2]} 22... Qg5+ {[%clk 0:01:06.6]} 23. Qg4 {[%clk 0:01:15.9]}
23... Qxg4+ {[%clk 0:00:59]} 24. fxg4 {[%clk 0:01:15.7]} 24... Ba6 {[%clk
0:00:59.9]} 25. Re7 {[%clk 0:01:00.1]} 25... f6 {[%clk 0:00:44.9]} 26. Nf5
{[%clk 0:00:49.8]} 26... Bd3 {[%clk 0:00:39.1]} 27. Rbe1 {[%clk 0:00:29.8]}
27... Bxf5 {[%clk 0:00:36.3]} 28. gxf5 {[%clk 0:00:30.7]} 28... Rd5 {[%clk
0:00:35.2]} 29. cxb6 {[%clk 0:00:28]} 29... axb6 {[%clk 0:00:36.1]} 30. Rb7
{[%clk 0:00:25.7]} 30... Rxf5 {[%clk 0:00:32.2]} 31. Ree7 {[%clk 0:00:22.6]}
31... Rg5+ {[%clk 0:00:30.3]} 32. Kf1 {[%clk 0:00:21.7]} 32... h5 {[%clk
0:00:26.3]} 33. Rxb6 {[%clk 0:00:18.4]} 33... Rxa2 {[%clk 0:00:22.1]} 34. Rxc6
{[%clk 0:00:18.7]} 34... Rf5 {[%clk 0:00:17.8]} 35. Re2 {[%clk 0:00:18.1]} 35...
Ra1+ {[%clk 0:00:17.9]} 36. Kg2 {[%clk 0:00:18.4]} 36... Rg5+ {[%clk 0:00:17.5]}
37. Kf3 {[%clk 0:00:18.6]} 37... h4 {[%clk 0:00:15.9]} 38. Re8+ {[%clk
0:00:17.8]} 38... Kh7 {[%clk 0:00:15.5]} 39. Re4 {[%clk 0:00:17.8]} 39... Rf5+
{[%clk 0:00:13.7]} 40. Ke2 {[%clk 0:00:17.1]} 40... g5 {[%clk 0:00:11.7]} 41.
Re7+ {[%clk 0:00:16.1]} 41... Kg6 {[%clk 0:00:11.8]} 42. Rcc7 {[%clk 0:00:16.2]}
42... Re5+ {[%clk 0:00:12.1]} 43. Rxe5 {[%clk 0:00:15.6]} 43... fxe5 {[%clk
0:00:13]} 44. Kf3 {[%clk 0:00:15.4]} 44... Kf6 {[%clk 0:00:10.6]} 45. Rc6+
{[%clk 0:00:15.4]} 45... Kf5 {[%clk 0:00:10.2]} 46. Rc5 {[%clk 0:00:15.8]} 46...
g4+ {[%clk 0:00:09.3]} 47. Ke2 {[%clk 0:00:13.4]} 47... Kf4 {[%clk 0:00:09.2]}
48. Rc8 {[%clk 0:00:12.5]} 48... Ra2+ {[%clk 0:00:08.5]} 49. Ke1 {[%clk
0:00:11.3]} 49... Kf3 {[%clk 0:00:06.6]} 50. Rf8+ {[%clk 0:00:11.4]} 50... Kg2
{[%clk 0:00:07]} 51. Rg8 {[%clk 0:00:11.9]} 51... Kh3 {[%clk 0:00:05.6]} 52. Rh8
{[%clk 0:00:11.4]} 52... e4 {[%clk 0:00:04.4]} 53. c4 {[%clk 0:00:11.1]} 53...
e3 {[%clk 0:00:04.7]} 54. fxe3 {[%clk 0:00:09.7]} 54... Rxh2 {[%clk 0:00:05.6]}
55. c5 {[%clk 0:00:09.8]} 55... g3 {[%clk 0:00:06.1]} 56. c6 {[%clk 0:00:09.3]}
56... Rb2 {[%clk 0:00:06.4]} 57. c7 {[%clk 0:00:09.1]} 57... g2 {[%clk
0:00:06.3]} 58. Rg8 {[%clk 0:00:09.3]} 58... Rc2 {[%clk 0:00:05.9]} 59. Kd1
{[%clk 0:00:09.6]} 59... Rxc7 {[%clk 0:00:05.9]} 60. Ke2 {[%clk 0:00:10.3]}
60... Rc2+ {[%clk 0:00:05.8]} 61. Kf3 {[%clk 0:00:10.6]} 61... Kh2 {[%clk
0:00:05.4]} 62. Rg4 {[%clk 0:00:10.2]} 62... h3 {[%clk 0:00:05.6]} 63. Rg3
{[%clk 0:00:10.6]} 63... g1=Q {[%clk 0:00:05.3]} 64. Rxg1 {[%clk 0:00:10.2]}
64... Kxg1 {[%clk 0:00:06.2]} 65. e4 {[%clk 0:00:10.3]} 65... h2 {[%clk
0:00:06.5]} 0-1

[Event "*** Titled Tuesday Blitz"]
[Site "Chess.com"]
[Date "2021.02.16"]
[Round "8"]
[White "AndrewMaco"]
[Black "FontVella8"]
[Result "1/2-1/2"]
[WhiteElo "2667"]
[BlackElo "2570"]
[TimeControl "180+1"]
[EndTime "11:30:51 PST"]
[Termination "Game drawn - insufficient material"]

1. e4 {[%clk 0:02:56.5]} 1... e5 {[%clk 0:02:58.9]} 2. Nf3 {[%clk 0:02:56.5]}
2... Nc6 {[%clk 0:02:59]} 3. Bb5 {[%clk 0:02:56.4]} 3... a6 {[%clk 0:02:58.9]}
4. Ba4 {[%clk 0:02:57]} 4... g6 {[%clk 0:02:54.9]} 5. d4 {[%clk 0:02:55.7]} 5...
exd4 {[%clk 0:02:51.3]} 6. Nxd4 {[%clk 0:02:56.6]} 6... Qf6 {[%clk 0:02:45.6]}
7. Nxc6 {[%clk 0:02:53.2]} 7... dxc6 {[%clk 0:02:44.7]} 8. O-O {[%clk
0:02:50.2]} 8... Bg7 {[%clk 0:02:43.7]} 9. c3 {[%clk 0:02:36.5]} 9... Ne7 {[%clk
0:02:38.2]} 10. Be3 {[%clk 0:02:30.1]} 10... O-O {[%clk 0:02:37.2]} 11. Nd2
{[%clk 0:02:29.6]} 11... Rd8 {[%clk 0:02:31.4]} 12. Qe2 {[%clk 0:02:20.7]} 12...
Be6 {[%clk 0:02:23.9]} 13. f4 {[%clk 0:02:14.1]} 13... Qh4 {[%clk 0:02:06.7]}
14. Nf3 {[%clk 0:02:09.1]} 14... Qh5 {[%clk 0:02:06.1]} 15. h3 {[%clk
0:02:09.2]} 15... b5 {[%clk 0:01:58.4]} 16. Bb3 {[%clk 0:02:09.1]} 16... c5
{[%clk 0:01:30.5]} 17. Bxe6 {[%clk 0:01:52.7]} 17... fxe6 {[%clk 0:01:30.2]} 18.
Kh2 {[%clk 0:01:53.4]} 18... g5 {[%clk 0:01:15.7]} 19. g4 {[%clk 0:01:42.6]}
19... Qg6 {[%clk 0:01:12.1]} 20. Nxg5 {[%clk 0:01:39.8]} 20... h6 {[%clk
0:01:04.7]} 21. f5 {[%clk 0:01:21.7]} 21... exf5 {[%clk 0:01:04.5]} 22. exf5
{[%clk 0:01:21.7]} 22... Be5+ {[%clk 0:00:58.2]} 23. Kg2 {[%clk 0:01:17.1]}
23... Qc6+ {[%clk 0:00:55.4]} 24. Nf3 {[%clk 0:01:16.9]} 24... Nd5 {[%clk
0:00:52.1]} 25. Kg1 {[%clk 0:01:11]} 25... Re8 {[%clk 0:00:48.6]} 26. Bd2 {[%clk
0:00:48.8]} 26... Bxc3 {[%clk 0:00:27.3]} 27. Qg2 {[%clk 0:00:41.5]} 27... Bxb2
{[%clk 0:00:26.7]} 28. Rae1 {[%clk 0:00:41.3]} 28... Bg7 {[%clk 0:00:25.4]} 29.
g5 {[%clk 0:00:38.8]} 29... hxg5 {[%clk 0:00:24.8]} 30. Qxg5 {[%clk 0:00:37.6]}
30... Qf6 {[%clk 0:00:22.8]} 31. Qg4 {[%clk 0:00:35.3]} 31... c6 {[%clk
0:00:19.4]} 32. Kh1 {[%clk 0:00:34.7]} 32... c4 {[%clk 0:00:18.2]} 33. Bg5
{[%clk 0:00:32.6]} 33... Qf7 {[%clk 0:00:15.3]} 34. Rxe8+ {[%clk 0:00:28.1]}
34... Rxe8 {[%clk 0:00:14.3]} 35. Rg1 {[%clk 0:00:29]} 35... Nf6 {[%clk
0:00:07.7]} 36. Qh4 {[%clk 0:00:26.7]} 36... Re4 {[%clk 0:00:05.4]} 37. Qg3
{[%clk 0:00:12.4]} 37... Kf8 {[%clk 0:00:04.4]} 38. Qd6+ {[%clk 0:00:12.1]}
38... Qe7 {[%clk 0:00:04.6]} 39. Qxc6 {[%clk 0:00:12.3]} 39... Kf7 {[%clk
0:00:03.2]} 40. Qxa6 {[%clk 0:00:12]} 40... c3 {[%clk 0:00:03]} 41. Qxb5 {[%clk
0:00:11.9]} 41... Re2 {[%clk 0:00:02.3]} 42. Qc4+ {[%clk 0:00:11.5]} 42... Kf8
{[%clk 0:00:01.9]} 43. Qxc3 {[%clk 0:00:09.3]} 43... Qe4 {[%clk 0:00:01.9]} 44.
Qc8+ {[%clk 0:00:08.7]} 44... Kf7 {[%clk 0:00:01.8]} 45. Qe6+ {[%clk 0:00:07.5]}
45... Qxe6 {[%clk 0:00:01.6]} 46. fxe6+ {[%clk 0:00:08.4]} 46... Kxe6 {[%clk
0:00:02.2]} 47. Re1 {[%clk 0:00:08.3]} 47... Rxe1+ {[%clk 0:00:01.3]} 48. Nxe1
{[%clk 0:00:09.2]} 48... Ne4 {[%clk 0:00:02]} 49. Be3 {[%clk 0:00:08.9]} 49...
Bc3 {[%clk 0:00:02.4]} 50. Nc2 {[%clk 0:00:09.3]} 50... Kf5 {[%clk 0:00:02.6]}
51. Kg2 {[%clk 0:00:09.8]} 51... Nf6 {[%clk 0:00:02.6]} 52. Kf3 {[%clk
0:00:10.1]} 52... Nd5 {[%clk 0:00:03]} 53. Bd4 {[%clk 0:00:10.6]} 53... Bxd4
{[%clk 0:00:02.9]} 54. Nxd4+ {[%clk 0:00:11.5]} 54... Ke5 {[%clk 0:00:02.7]} 55.
Nc2 {[%clk 0:00:11.9]} 55... Nc3 {[%clk 0:00:02.5]} 56. a3 {[%clk 0:00:12.1]}
56... Kf5 {[%clk 0:00:03]} 57. Ke3 {[%clk 0:00:12.2]} 57... Nd5+ {[%clk
0:00:02.8]} 58. Kd4 {[%clk 0:00:12.4]} 58... Nf4 {[%clk 0:00:02.1]} 59. a4
{[%clk 0:00:12.3]} 59... Nxh3 {[%clk 0:00:02]} 60. a5 {[%clk 0:00:12.8]} 60...
Ng5 {[%clk 0:00:02.9]} 61. a6 {[%clk 0:00:12.8]} 61... Ne6+ {[%clk 0:00:03.3]}
62. Kd5 {[%clk 0:00:13.4]} 62... Nc7+ {[%clk 0:00:02.6]} 63. Kc6 {[%clk
0:00:08.8]} 63... Nxa6 {[%clk 0:00:03.5]} 1/2-1/2